[Event "*** Titled Tuesday Blitz"]
[Site "Chess.com"]
[Date "2020.11.24"]
[Round "11"]
[White "cstevens1"]
[Black "DoHoChess"]
[Result "1-0"]
[WhiteElo "2599"]
[BlackElo "2680"]
[TimeControl "180+1"]
[EndTime "12:26:22 PST"]
[Termination "cstevens1 won by resignation"]

1. e4 {[%clk 0:03:00.9]} 1... e5 {[%clk 0:02:59.1]} 2. Nf3 {[%clk 0:03:01.3]}
2... Nc6 {[%clk 0:02:59.2]} 3. Bb5 {[%clk 0:03:01.1]} 3... a6 {[%clk 0:02:59.2]}
4. Ba4 {[%clk 0:03:00.9]} 4... b5 {[%clk 0:02:59.5]} 5. Bb3 {[%clk 0:03:00.9]}
5... Na5 {[%clk 0:02:59.8]} 6. O-O {[%clk 0:02:53.6]} 6... d6 {[%clk 0:03:00]}
7. d4 {[%clk 0:02:46.8]} 7... exd4 {[%clk 0:03:00.9]} 8. c3 {[%clk 0:02:46.2]}
8... Nxb3 {[%clk 0:02:58.7]} 9. axb3 {[%clk 0:02:46.6]} 9... dxc3 {[%clk
0:02:58.6]} 10. Nxc3 {[%clk 0:02:47.1]} 10... Bb7 {[%clk 0:02:58.8]} 11. Nd5
{[%clk 0:02:43.3]} 11... c6 {[%clk 0:02:30.4]} 12. Ne3 {[%clk 0:02:22.7]} 12...
Nf6 {[%clk 0:02:28]} 13. Nf5 {[%clk 0:02:22.7]} 13... g6 {[%clk 0:02:25.6]} 14.
Nh6 {[%clk 0:02:00]} 14... Bg7 {[%clk 0:02:04.9]} 15. Re1 {[%clk 0:01:46.6]}
15... Kf8 {[%clk 0:01:39.6]} 16. Bf4 {[%clk 0:00:47.6]} 16... Ne8 {[%clk
0:01:38.6]} 17. e5 {[%clk 0:00:39.5]} 17... dxe5 {[%clk 0:01:11.1]} 18. Nxe5
{[%clk 0:00:33.8]} 18... Bxe5 {[%clk 0:00:42.5]} 19. Bxe5 {[%clk 0:00:31.2]}
19... f6 {[%clk 0:00:42.8]} 20. Bd4 {[%clk 0:00:21.9]} 20... Qd5 {[%clk
0:00:17.3]} 21. Qe2 {[%clk 0:00:11.3]} 21... Qd6 {[%clk 0:00:09.6]} 22. b4
{[%clk 0:00:05.4]} 22... Kg7 {[%clk 0:00:09.9]} 23. Bc5 {[%clk 0:00:04.4]} 23...
Qc7 {[%clk 0:00:04.6]} 24. Ng4 {[%clk 0:00:03.9]} 24... Nd6 {[%clk 0:00:03]} 25.
Qe7+ {[%clk 0:00:04.1]} 25... Qxe7 {[%clk 0:00:03.4]} 26. Rxe7+ {[%clk
0:00:04.7]} 26... Nf7 {[%clk 0:00:04.2]} 27. Rxb7 {[%clk 0:00:05.3]} 27... Rhe8
{[%clk 0:00:04.8]} 28. Ne3 {[%clk 0:00:05.6]} 28... f5 {[%clk 0:00:04.9]} 29.
Rc7 {[%clk 0:00:05.5]} 29... f4 {[%clk 0:00:05]} 30. Ng4 {[%clk 0:00:05.5]}
30... a5 {[%clk 0:00:05.5]} 31. Bd4+ {[%clk 0:00:05.7]} 31... Kf8 {[%clk
0:00:04.7]} 32. Nf6 {[%clk 0:00:06]} 32... Re6 {[%clk 0:00:04.7]} 33. Nxh7+
{[%clk 0:00:05.3]} 33... Kg8 {[%clk 0:00:03.8]} 34. Nf6+ {[%clk 0:00:05.6]}
34... Kf8 {[%clk 0:00:04.4]} 35. Nd7+ {[%clk 0:00:04.9]} 35... Kg8 {[%clk
0:00:04]} 36. Nc5 {[%clk 0:00:05.4]} 36... Rd6 {[%clk 0:00:03.8]} 37. Bc3 {[%clk
0:00:04.9]} 37... Rad8 {[%clk 0:00:03.2]} 38. Kf1 {[%clk 0:00:04.4]} 38... axb4
{[%clk 0:00:03.1]} 39. Bxb4 {[%clk 0:00:03.8]} 39... Rd4 {[%clk 0:00:02.9]} 40.
Bc3 {[%clk 0:00:03.4]} 40... R4d5 {[%clk 0:00:03.4]} 41. Ne6 {[%clk 0:00:03.6]}
41... Re8 {[%clk 0:00:03.9]} 42. Rxc6 {[%clk 0:00:03.6]} 42... b4 {[%clk
0:00:03]} 43. Bxb4 {[%clk 0:00:03.7]} 43... Ne5 {[%clk 0:00:03.5]} 44. Bc3
{[%clk 0:00:02.8]} 44... Nxc6 {[%clk 0:00:03.4]} 45. Nxf4 {[%clk 0:00:03.7]}
45... Rf5 {[%clk 0:00:03.6]} 46. Nxg6 {[%clk 0:00:03.6]} 46... Re6 {[%clk
0:00:03.7]} 47. Nh4 {[%clk 0:00:03.7]} 47... Rd5 {[%clk 0:00:04.1]} 48. Nf3
{[%clk 0:00:04]} 48... Red6 {[%clk 0:00:04.6]} 49. g3 {[%clk 0:00:04.3]} 49...
Rd1+ {[%clk 0:00:04.8]} 50. Rxd1 {[%clk 0:00:04.7]} 50... Rxd1+ {[%clk
0:00:05.7]} 51. Kg2 {[%clk 0:00:05.6]} 51... Rd7 {[%clk 0:00:06.6]} 52. h4
{[%clk 0:00:06.4]} 52... Ne7 {[%clk 0:00:07.1]} 53. g4 {[%clk 0:00:06.6]} 53...
Nd5 {[%clk 0:00:07.8]} 54. Kg3 {[%clk 0:00:07.5]} 54... Nxc3 {[%clk 0:00:08.3]}
55. bxc3 {[%clk 0:00:08]} 55... Rc7 {[%clk 0:00:09.2]} 56. h5 {[%clk 0:00:07.5]}
56... Rxc3 {[%clk 0:00:10.1]} 57. g5 {[%clk 0:00:08]} 57... Kg7 {[%clk
0:00:10.6]} 58. Kg4 {[%clk 0:00:08.4]} 58... Rc4+ {[%clk 0:00:11.1]} 59. Kf5
{[%clk 0:00:08.7]} 59... Rc2 {[%clk 0:00:11.2]} 60. h6+ {[%clk 0:00:07.7]} 60...
Kh7 {[%clk 0:00:11.7]} 61. Ne5 {[%clk 0:00:06.5]} 61... Rxf2+ {[%clk 0:00:11.8]}
62. Kg4 {[%clk 0:00:06.9]} 62... Rf8 {[%clk 0:00:11.3]} 63. Nf3 {[%clk
0:00:06.4]} 63... Kg6 {[%clk 0:00:11.7]} 64. Nh4+ {[%clk 0:00:07.1]} 64... Kh7
{[%clk 0:00:12.2]} 65. Kh5 {[%clk 0:00:07.6]} 65... Rc8 {[%clk 0:00:10]} 66. g6+
{[%clk 0:00:07.9]} 66... Kg8 {[%clk 0:00:10.6]} 67. Kg5 {[%clk 0:00:08.8]} 67...
Rc5+ {[%clk 0:00:10.5]} 68. Nf5 {[%clk 0:00:09]} 68... Rc7 {[%clk 0:00:10.9]}
69. Kf6 {[%clk 0:00:08.7]} 69... Rc6+ {[%clk 0:00:11.4]} 70. Kg5 {[%clk
0:00:08.7]} 70... Rc7 {[%clk 0:00:11.9]} 71. Kf4 {[%clk 0:00:08.7]} 71... Rc4+
{[%clk 0:00:11.6]} 72. Ke5 {[%clk 0:00:08.6]} 72... Rc5+ {[%clk 0:00:12.2]} 73.
Kf6 {[%clk 0:00:08.7]} 73... Rc7 {[%clk 0:00:12.5]} 74. Ne7+ {[%clk 0:00:08.5]}
1-0

[Event "*** Titled Tuesday Blitz"]
[Site "Chess.com"]
[Date "2020.11.24"]
[Round "11"]
[White "CM_rui"]
[Black "KononenkoD"]
[Result "0-1"]
[WhiteElo "2362"]
[BlackElo "2487"]
[TimeControl "180+1"]
[EndTime "12:26:27 PST"]
[Termination "KononenkoD won by checkmate"]

1. e4 {[%clk 0:03:00.9]} 1... c6 {[%clk 0:02:58.9]} 2. d4 {[%clk 0:03:00.6]}
2... d5 {[%clk 0:02:59.8]} 3. Nc3 {[%clk 0:03:01]} 3... dxe4 {[%clk 0:02:59.4]}
4. Nxe4 {[%clk 0:03:01.9]} 4... Bf5 {[%clk 0:02:57.9]} 5. Nc5 {[%clk 0:03:01.7]}
5... e5 {[%clk 0:02:54.4]} 6. Nxb7 {[%clk 0:03:01.6]} 6... Qxd4 {[%clk
0:02:47.1]} 7. Qxd4 {[%clk 0:02:59.6]} 7... exd4 {[%clk 0:02:47.1]} 8. Nf3
{[%clk 0:02:58.1]} 8... c5 {[%clk 0:02:35.9]} 9. Bb5+ {[%clk 0:02:54]} 9... Bd7
{[%clk 0:02:36.3]} 10. Bxd7+ {[%clk 0:02:51.7]} 10... Nxd7 {[%clk 0:02:33]} 11.
O-O {[%clk 0:02:46.5]} 11... f6 {[%clk 0:02:18.8]} 12. Bf4 {[%clk 0:02:43.4]}
12... Kf7 {[%clk 0:02:15.1]} 13. Rfe1 {[%clk 0:02:37.1]} 13... Nh6 {[%clk
0:02:10.2]} 14. Nd6+ {[%clk 0:02:31]} 14... Bxd6 {[%clk 0:02:09.3]} 15. Bxd6
{[%clk 0:02:31.9]} 15... Nf5 {[%clk 0:02:09.6]} 16. Bf4 {[%clk 0:02:29]} 16...
g5 {[%clk 0:02:06.5]} 17. Bc7 {[%clk 0:02:21]} 17... Rac8 {[%clk 0:02:01.4]} 18.
Ba5 {[%clk 0:02:20.5]} 18... Rhe8 {[%clk 0:01:56.8]} 19. Nd2 {[%clk 0:02:19.4]}
19... Nd6 {[%clk 0:01:50.7]} 20. Rad1 {[%clk 0:01:55.1]} 20... Ne5 {[%clk
0:01:38.8]} 21. b3 {[%clk 0:01:44.5]} 21... Nc6 {[%clk 0:01:36.1]} 22. Rxe8
{[%clk 0:01:41.1]} 22... Kxe8 {[%clk 0:01:32.4]} 23. b4 {[%clk 0:01:33.2]} 23...
cxb4 {[%clk 0:01:32]} 24. Nb3 {[%clk 0:01:27.8]} 24... Nb7 {[%clk 0:01:24]} 25.
Nxd4 {[%clk 0:01:10.3]} 25... Nxd4 {[%clk 0:01:19.4]} 26. Rxd4 {[%clk
0:01:11.2]} 26... Nxa5 {[%clk 0:01:19.3]} 27. Rxb4 {[%clk 0:01:10.9]} 27... Rxc2
{[%clk 0:01:18.8]} 28. h4 {[%clk 0:01:11.5]} 28... Rxa2 {[%clk 0:01:11.8]} 29.
hxg5 {[%clk 0:01:11.4]} 29... fxg5 {[%clk 0:01:11.4]} 30. Rb5 {[%clk 0:01:09.1]}
30... h6 {[%clk 0:01:10.5]} 31. Rb8+ {[%clk 0:01:07.5]} 31... Kf7 {[%clk
0:01:08.2]} 32. Rd8 {[%clk 0:01:02.5]} 32... Nc4 {[%clk 0:01:02.4]} 33. g4
{[%clk 0:00:59.1]} 33... a5 {[%clk 0:00:58.2]} 34. Kg2 {[%clk 0:00:56.1]} 34...
Rd2 {[%clk 0:00:51.2]} 35. Rh8 {[%clk 0:00:50.4]} 35... Kg7 {[%clk 0:00:50.4]}
36. Ra8 {[%clk 0:00:50.3]} 36... Rd5 {[%clk 0:00:48.9]} 37. Ra7+ {[%clk
0:00:50.1]} 37... Kg6 {[%clk 0:00:48.2]} 38. Ra6+ {[%clk 0:00:49.8]} 38... Nd6
{[%clk 0:00:48.5]} 39. Kf3 {[%clk 0:00:48.5]} 39... Kf6 {[%clk 0:00:48.7]} 40.
Ke3 {[%clk 0:00:47]} 40... Ke6 {[%clk 0:00:46.3]} 41. f4 {[%clk 0:00:46.7]}
41... gxf4+ {[%clk 0:00:44.8]} 42. Kxf4 {[%clk 0:00:47.6]} 42... Rb5 {[%clk
0:00:44.6]} 43. Ra8 {[%clk 0:00:43.1]} 43... Rb4+ {[%clk 0:00:44.6]} 44. Kg3
{[%clk 0:00:42.6]} 44... a4 {[%clk 0:00:43.2]} 45. Rh8 {[%clk 0:00:41.2]} 45...
Nf7 {[%clk 0:00:43]} 46. Re8+ {[%clk 0:00:34.9]} 46... Kf6 {[%clk 0:00:42.5]}
47. Ra8 {[%clk 0:00:34.9]} 47... Rb3+ {[%clk 0:00:41.1]} 48. Kf4 {[%clk
0:00:34.5]} 48... a3 {[%clk 0:00:41.4]} 49. Ra6+ {[%clk 0:00:33.9]} 49... Ke7
{[%clk 0:00:41.3]} 50. Kf5 {[%clk 0:00:33.7]} 50... Rf3+ {[%clk 0:00:40.1]} 51.
Ke4 {[%clk 0:00:33.5]} 51... Rb3 {[%clk 0:00:39.2]} 52. Kd5 {[%clk 0:00:32.4]}
52... Rg3 {[%clk 0:00:37.3]} 53. Re6+ {[%clk 0:00:25.9]} 53... Kf8 {[%clk
0:00:36.9]} 54. Ra6 {[%clk 0:00:26.8]} 54... Kg7 {[%clk 0:00:36]} 55. Ke6 {[%clk
0:00:25.9]} 55... Rxg4 {[%clk 0:00:30.2]} 56. Rxa3 {[%clk 0:00:24.9]} 56... Rf4
{[%clk 0:00:29.6]} 57. Ra1 {[%clk 0:00:22.7]} 57... Kg6 {[%clk 0:00:28.9]} 58.
Rg1+ {[%clk 0:00:22.3]} 58... Ng5+ {[%clk 0:00:29]} 59. Ke5 {[%clk 0:00:22.7]}
59... Rf8 {[%clk 0:00:28.6]} 60. Kd4 {[%clk 0:00:21.8]} 60... Re8 {[%clk
0:00:27.7]} 61. Ra1 {[%clk 0:00:19.9]} 61... h5 {[%clk 0:00:27.8]} 62. Ra6+
{[%clk 0:00:20]} 62... Re6 {[%clk 0:00:27.7]} 63. Ra5 {[%clk 0:00:16.4]} 63...
h4 {[%clk 0:00:26.9]} 64. Ra1 {[%clk 0:00:14.3]} 64... h3 {[%clk 0:00:26.3]} 65.
Rh1 {[%clk 0:00:13.7]} 65... Kh5 {[%clk 0:00:26]} 66. Kd5 {[%clk 0:00:12.9]}
66... Re8 {[%clk 0:00:26.1]} 67. Kd4 {[%clk 0:00:12.5]} 67... Kh4 {[%clk
0:00:26.2]} 68. Kd3 {[%clk 0:00:11.8]} 68... Nf3 {[%clk 0:00:26]} 69. Kc2 {[%clk
0:00:09.4]} 69... Kg3 {[%clk 0:00:26]} 70. Kd3 {[%clk 0:00:09.5]} 70... h2
{[%clk 0:00:25.7]} 71. Ra1 {[%clk 0:00:09.3]} 71... Ng1 {[%clk 0:00:25]} 72. Ra7
{[%clk 0:00:07.5]} 72... h1=Q {[%clk 0:00:23.9]} 73. Rg7+ {[%clk 0:00:08.4]}
73... Kf2 {[%clk 0:00:23.8]} 74. Rf7+ {[%clk 0:00:08.3]} 74... Nf3 {[%clk
0:00:24.1]} 75. Kc4 {[%clk 0:00:07.7]} 75... Qc1+ {[%clk 0:00:23.7]} 76. Kd5
{[%clk 0:00:07.5]} 76... Rd8+ {[%clk 0:00:21.6]} 77. Ke6 {[%clk 0:00:07.6]}
77... Qe3+ {[%clk 0:00:21.3]} 78. Kf5 {[%clk 0:00:07.8]} 78... Qe5+ {[%clk
0:00:20.4]} 79. Kg6 {[%clk 0:00:08.3]} 79... Qg5+ {[%clk 0:00:20.6]} 80. Kh7
{[%clk 0:00:08.8]} 80... Qh4+ {[%clk 0:00:18.5]} 81. Kg7 {[%clk 0:00:09.4]}
81... Qh8+ {[%clk 0:00:18.9]} 82. Kg6 {[%clk 0:00:09.4]} 82... Rg8+ {[%clk
0:00:19.2]} 83. Kf5 {[%clk 0:00:09.9]} 83... Qe5# {[%clk 0:00:19.5]} 0-1

[Event "*** Titled Tuesday Blitz"]
[Site "Chess.com"]
[Date "2020.11.24"]
[Round "11"]
[White "temus_galaktionov"]
[Black "AlexSuv"]
[Result "1/2-1/2"]
[WhiteElo "2675"]
[BlackElo "2529"]
[TimeControl "180+1"]
[EndTime "12:26:37 PST"]
[Termination "Game drawn - insufficient material"]

1. d4 {[%clk 0:03:00.2]} 1... Nf6 {[%clk 0:02:58.3]} 2. Nf3 {[%clk 0:03:00.7]}
2... e6 {[%clk 0:02:56.6]} 3. c4 {[%clk 0:03:01.1]} 3... d5 {[%clk 0:02:55.8]}
4. Nc3 {[%clk 0:03:00.7]} 4... Bb4 {[%clk 0:02:55]} 5. cxd5 {[%clk 0:02:58.1]}
5... exd5 {[%clk 0:02:54]} 6. Bg5 {[%clk 0:02:58.4]} 6... h6 {[%clk 0:02:49.8]}
7. Bxf6 {[%clk 0:02:58.2]} 7... Qxf6 {[%clk 0:02:50.7]} 8. e3 {[%clk 0:02:59.1]}
8... O-O {[%clk 0:02:49.8]} 9. Bd3 {[%clk 0:02:59.6]} 9... c6 {[%clk 0:02:47.7]}
10. O-O {[%clk 0:02:58.3]} 10... Bg4 {[%clk 0:02:47.3]} 11. h3 {[%clk 0:02:58]}
11... Bxf3 {[%clk 0:02:46.2]} 12. Qxf3 {[%clk 0:02:58.9]} 12... Qxf3 {[%clk
0:02:46.2]} 13. gxf3 {[%clk 0:02:59.8]} 13... Nd7 {[%clk 0:02:46.8]} 14. Kg2
{[%clk 0:02:59.8]} 14... g6 {[%clk 0:02:40.3]} 15. Rg1 {[%clk 0:02:57.8]} 15...
Nf6 {[%clk 0:02:31.3]} 16. f4 {[%clk 0:02:49.4]} 16... c5 {[%clk 0:02:27.7]} 17.
Kf3 {[%clk 0:02:45.5]} 17... cxd4 {[%clk 0:02:23.2]} 18. exd4 {[%clk 0:02:46.4]}
18... Bxc3 {[%clk 0:02:23.8]} 19. bxc3 {[%clk 0:02:46.9]} 19... Rac8 {[%clk
0:02:24.7]} 20. Rac1 {[%clk 0:02:45.6]} 20... Rfe8 {[%clk 0:02:18.3]} 21. f5
{[%clk 0:02:45.2]} 21... g5 {[%clk 0:02:18.4]} 22. h4 {[%clk 0:02:45.1]} 22...
g4+ {[%clk 0:02:18.8]} 23. Kf4 {[%clk 0:02:42.6]} 23... Kh7 {[%clk 0:02:13.7]}
24. f3 {[%clk 0:02:36.5]} 24... gxf3 {[%clk 0:02:11.4]} 25. Kxf3 {[%clk
0:02:37.4]} 25... Ne4 {[%clk 0:02:05.4]} 26. c4 {[%clk 0:02:27.3]} 26... Nd2+
{[%clk 0:01:59.6]} 27. Kf4 {[%clk 0:02:26.9]} 27... dxc4 {[%clk 0:01:45.9]} 28.
Bc2 {[%clk 0:02:26.3]} 28... Rcd8 {[%clk 0:01:36.7]} 29. f6+ {[%clk 0:02:24.7]}
29... Kh8 {[%clk 0:01:36.9]} 30. Rg7 {[%clk 0:02:18]} 30... Rxd4+ {[%clk
0:01:36.7]} 31. Kg3 {[%clk 0:02:18]} 31... Re3+ {[%clk 0:01:26.7]} 32. Kf2
{[%clk 0:02:17]} 32... Rf3+ {[%clk 0:01:26.3]} 33. Ke2 {[%clk 0:02:15.3]} 33...
Rxf6 {[%clk 0:01:27.2]} 34. Rcg1 {[%clk 0:02:06]} 34... Re6+ {[%clk 0:01:26.5]}
35. Kf2 {[%clk 0:01:37.5]} 35... Rf4+ {[%clk 0:01:26.2]} 36. Kg3 {[%clk
0:01:37.7]} 36... Kxg7 {[%clk 0:01:19.1]} 37. Kxf4+ {[%clk 0:01:38.6]} 37... Kf6
{[%clk 0:01:20]} 38. Rg8 {[%clk 0:01:32.2]} 38... b5 {[%clk 0:01:16.6]} 39. Rb8
{[%clk 0:01:28.5]} 39... a6 {[%clk 0:01:16.1]} 40. Rh8 {[%clk 0:01:23.2]} 40...
Ke7 {[%clk 0:01:15.8]} 41. Rb8 {[%clk 0:01:14]} 41... c3 {[%clk 0:01:15.6]} 42.
Rb7+ {[%clk 0:01:08.3]} 42... Kf6 {[%clk 0:01:12.2]} 43. a4 {[%clk 0:01:05.3]}
43... bxa4 {[%clk 0:01:01.7]} 44. Rc7 {[%clk 0:01:05.1]} 44... Nb3 {[%clk
0:00:37.9]} 45. Rxc3 {[%clk 0:01:04.5]} 45... Nd4 {[%clk 0:00:38.2]} 46. Bd3
{[%clk 0:00:51.5]} 46... Rb6 {[%clk 0:00:34.1]} 47. Rc4 {[%clk 0:00:46.5]} 47...
Ne6+ {[%clk 0:00:29.1]} 48. Ke3 {[%clk 0:00:46.7]} 48... a3 {[%clk 0:00:28.8]}
49. Kd2 {[%clk 0:00:41.2]} 49... Rb3 {[%clk 0:00:16]} 50. Bc2 {[%clk 0:00:34.3]}
50... Rb2 {[%clk 0:00:13.4]} 51. Kc3 {[%clk 0:00:31.2]} 51... a5 {[%clk
0:00:10.7]} 52. Ra4 {[%clk 0:00:30.2]} 52... Rb4 {[%clk 0:00:10.8]} 53. Rxa3
{[%clk 0:00:26.3]} 53... Rxh4 {[%clk 0:00:10.6]} 54. Rxa5 {[%clk 0:00:27.2]}
54... Rh3+ {[%clk 0:00:11.2]} 55. Kd2 {[%clk 0:00:26.9]} 55... h5 {[%clk
0:00:12.1]} 56. Rf5+ {[%clk 0:00:25.3]} 56... Ke7 {[%clk 0:00:12.6]} 57. Be4
{[%clk 0:00:21.2]} 57... Rh2+ {[%clk 0:00:11.6]} 58. Ke3 {[%clk 0:00:20.8]}
58... h4 {[%clk 0:00:12.5]} 59. Rh5 {[%clk 0:00:18.4]} 59... h3 {[%clk
0:00:12.8]} 60. Bf5 {[%clk 0:00:17.6]} 60... Kf6 {[%clk 0:00:11.2]} 61. Rxh3
{[%clk 0:00:12.2]} 61... Rxh3+ {[%clk 0:00:11]} 62. Bxh3 {[%clk 0:00:13.1]}
62... Ng5 {[%clk 0:00:11.5]} 63. Bg2 {[%clk 0:00:12.2]} 63... Ke5 {[%clk
0:00:12.4]} 64. Bf1 {[%clk 0:00:09.4]} 64... f5 {[%clk 0:00:13.3]} 65. Kf2
{[%clk 0:00:09.4]} 65... f4 {[%clk 0:00:14.2]} 66. Be2 {[%clk 0:00:10.3]} 66...
Ne4+ {[%clk 0:00:14]} 67. Kf3 {[%clk 0:00:10.8]} 67... Nc3 {[%clk 0:00:13]} 68.
Bd3 {[%clk 0:00:10.2]} 68... Nd5 {[%clk 0:00:11.6]} 69. Be2 {[%clk 0:00:09.3]}
69... Nf6 {[%clk 0:00:12.5]} 70. Bd1 {[%clk 0:00:08.2]} 70... Nh7 {[%clk
0:00:12.6]} 71. Be2 {[%clk 0:00:07.4]} 71... Ng5+ {[%clk 0:00:13]} 72. Kf2
{[%clk 0:00:06.9]} 72... Ke4 {[%clk 0:00:11.2]} 73. Bd1 {[%clk 0:00:05.6]} 73...
Nh3+ {[%clk 0:00:08.4]} 74. Kg2 {[%clk 0:00:05.9]} 74... Ng5 {[%clk 0:00:07.1]}
75. Kf2 {[%clk 0:00:06.8]} 75... Kf5 {[%clk 0:00:05.9]} 76. Bc2+ {[%clk
0:00:06.2]} 76... Kg4 {[%clk 0:00:06.4]} 77. Bd1+ {[%clk 0:00:06.1]} 77... f3
{[%clk 0:00:06.3]} 78. Bxf3+ {[%clk 0:00:04.8]} 1/2-1/2

[Event "*** Titled Tuesday Blitz"]
[Site "Chess.com"]
[Date "2020.11.24"]
[Round "11"]
[White "Chessalary"]
[Black "Isajevsky_Anton"]
[Result "0-1"]
[WhiteElo "2421"]
[BlackElo "2573"]
[TimeControl "180+1"]
[EndTime "12:26:39 PST"]
[Termination "Isajevsky_Anton won by checkmate"]

1. e4 {[%clk 0:03:00.5]} 1... c5 {[%clk 0:02:59.2]} 2. Nf3 {[%clk 0:03:00.1]}
2... d6 {[%clk 0:02:59.2]} 3. d4 {[%clk 0:03:00.7]} 3... cxd4 {[%clk 0:03:00.1]}
4. Nxd4 {[%clk 0:03:01.4]} 4... Nf6 {[%clk 0:03:00.7]} 5. Nc3 {[%clk 0:03:02]}
5... a6 {[%clk 0:03:01.4]} 6. Bc4 {[%clk 0:03:01.9]} 6... e6 {[%clk 0:03:01]} 7.
Bb3 {[%clk 0:03:02]} 7... Nbd7 {[%clk 0:03:00.9]} 8. O-O {[%clk 0:03:00.3]} 8...
Nc5 {[%clk 0:03:00.7]} 9. Bg5 {[%clk 0:03:00.8]} 9... Be7 {[%clk 0:02:57.5]} 10.
Qe2 {[%clk 0:03:00.4]} 10... O-O {[%clk 0:02:48.6]} 11. Kh1 {[%clk 0:02:55.5]}
11... Qc7 {[%clk 0:02:17.4]} 12. f4 {[%clk 0:02:48.2]} 12... b5 {[%clk 0:02:08]}
13. f5 {[%clk 0:02:45.7]} 13... b4 {[%clk 0:01:58]} 14. fxe6 {[%clk 0:02:20.3]}
14... fxe6 {[%clk 0:01:14.2]} 15. Na4 {[%clk 0:02:04.1]} 15... Nxb3 {[%clk
0:01:13.6]} 16. axb3 {[%clk 0:01:53.4]} 16... e5 {[%clk 0:01:11.4]} 17. Nf5
{[%clk 0:01:45.9]} 17... Bxf5 {[%clk 0:00:31]} 18. Rxf5 {[%clk 0:01:46.8]} 18...
Rac8 {[%clk 0:00:28.1]} 19. c3 {[%clk 0:01:41.3]} 19... a5 {[%clk 0:00:26.4]}
20. Raf1 {[%clk 0:01:34.9]} 20... Rf7 {[%clk 0:00:20.1]} 21. Be3 {[%clk
0:01:28.6]} 21... Qb7 {[%clk 0:00:14.2]} 22. Nb6 {[%clk 0:01:20.7]} 22... Rcf8
{[%clk 0:00:14]} 23. Nd5 {[%clk 0:00:58.1]} 23... Nxd5 {[%clk 0:00:12.4]} 24.
Rxf7 {[%clk 0:00:58]} 24... Rxf7 {[%clk 0:00:11.9]} 25. Rxf7 {[%clk 0:00:58.2]}
25... Kxf7 {[%clk 0:00:09.6]} 26. Qc4 {[%clk 0:00:53.9]} 26... bxc3 {[%clk
0:00:09]} 27. bxc3 {[%clk 0:00:51]} 27... Ke6 {[%clk 0:00:09.4]} 28. h3 {[%clk
0:00:42.3]} 28... Bf6 {[%clk 0:00:09.5]} 29. exd5+ {[%clk 0:00:34.6]} 29... Qxd5
{[%clk 0:00:09.4]} 30. Qc8+ {[%clk 0:00:27.3]} 30... Ke7 {[%clk 0:00:07.7]} 31.
Qc7+ {[%clk 0:00:26.9]} 31... Ke6 {[%clk 0:00:07.2]} 32. Qc8+ {[%clk 0:00:25.6]}
32... Kf7 {[%clk 0:00:07.5]} 33. Qd7+ {[%clk 0:00:24.9]} 33... Kg6 {[%clk
0:00:07.9]} 34. Qg4+ {[%clk 0:00:24.1]} 34... Kf7 {[%clk 0:00:08.3]} 35. Qd7+
{[%clk 0:00:18.3]} 35... Be7 {[%clk 0:00:08.7]} 36. Qf5+ {[%clk 0:00:15.9]}
36... Ke8 {[%clk 0:00:09.1]} 37. Qxh7 {[%clk 0:00:15]} 37... Bf6 {[%clk
0:00:06.8]} 38. Qg6+ {[%clk 0:00:14.6]} 38... Kd7 {[%clk 0:00:07.3]} 39. Qf5+
{[%clk 0:00:13.6]} 39... Kc7 {[%clk 0:00:07.8]} 40. c4 {[%clk 0:00:12.7]} 40...
Qd1+ {[%clk 0:00:07.1]} 41. Kh2 {[%clk 0:00:13.1]} 41... Qxb3 {[%clk 0:00:08]}
42. Qe4 {[%clk 0:00:12.3]} 42... Qb7 {[%clk 0:00:07.3]} 43. Qd3 {[%clk
0:00:11.3]} 43... e4 {[%clk 0:00:07.5]} 44. Qd2 {[%clk 0:00:09.8]} 44... Be5+
{[%clk 0:00:08]} 45. Bf4 {[%clk 0:00:09.3]} 45... Bxf4+ {[%clk 0:00:08]} 46.
Qxf4 {[%clk 0:00:10.2]} 46... Qc6 {[%clk 0:00:08.5]} 47. Qf7+ {[%clk 0:00:09.7]}
47... Kb6 {[%clk 0:00:07.4]} 48. Qxg7 {[%clk 0:00:07.3]} 48... Qxc4 {[%clk
0:00:06.5]} 49. Qb2+ {[%clk 0:00:07.8]} 49... Qb4 {[%clk 0:00:06.4]} 50. Qe2
{[%clk 0:00:08.3]} 50... a4 {[%clk 0:00:05.8]} 51. h4 {[%clk 0:00:08.3]} 51...
a3 {[%clk 0:00:06.2]} 52. h5 {[%clk 0:00:08.8]} 52... Qb2 {[%clk 0:00:06.7]} 53.
Qe3+ {[%clk 0:00:08.7]} 53... Kc7 {[%clk 0:00:06]} 54. Qxe4 {[%clk 0:00:08.4]}
54... a2 {[%clk 0:00:06.4]} 55. Qe7+ {[%clk 0:00:08.7]} 55... Kb6 {[%clk
0:00:06.7]} 56. Qxd6+ {[%clk 0:00:08.7]} 56... Ka5 {[%clk 0:00:07.1]} 57. Qc5+
{[%clk 0:00:08.7]} 57... Ka4 {[%clk 0:00:07.3]} 58. Qc4+ {[%clk 0:00:08.8]}
58... Ka3 {[%clk 0:00:07.9]} 59. Qa6+ {[%clk 0:00:09]} 59... Kb3 {[%clk
0:00:07.9]} 60. Qb5+ {[%clk 0:00:09.7]} 60... Kc2 {[%clk 0:00:08.3]} 61. Qc4+
{[%clk 0:00:09.5]} 61... Kb1 {[%clk 0:00:08.8]} 62. Qf1+ {[%clk 0:00:07.6]}
62... Qc1 {[%clk 0:00:09.2]} 63. Qb5+ {[%clk 0:00:07.8]} 63... Kc2 {[%clk
0:00:09.6]} 64. Qc4+ {[%clk 0:00:07.9]} 64... Kb2 {[%clk 0:00:10.1]} 65. Qb4+
{[%clk 0:00:07.8]} 65... Ka1 {[%clk 0:00:10.6]} 66. g4 {[%clk 0:00:05.6]} 66...
Qb2+ {[%clk 0:00:09.8]} 67. Qxb2+ {[%clk 0:00:06]} 67... Kxb2 {[%clk 0:00:10.7]}
68. h6 {[%clk 0:00:06.9]} 68... a1=Q {[%clk 0:00:11]} 69. h7 {[%clk 0:00:07.8]}
69... Kc2 {[%clk 0:00:11.6]} 70. h8=Q {[%clk 0:00:08.2]} 70... Qxh8+ {[%clk
0:00:11.8]} 71. Kg3 {[%clk 0:00:09.1]} 71... Qg7 {[%clk 0:00:12.6]} 72. Kf4
{[%clk 0:00:09.2]} 72... Kc3 {[%clk 0:00:13.5]} 73. g5 {[%clk 0:00:09.9]} 73...
Kc4 {[%clk 0:00:14.4]} 74. Kf5 {[%clk 0:00:10.8]} 74... Kd5 {[%clk 0:00:14.6]}
75. g6 {[%clk 0:00:11.7]} 75... Kd6 {[%clk 0:00:14.4]} 76. Kg5 {[%clk
0:00:12.6]} 76... Ke5 {[%clk 0:00:14.9]} 77. Kh5 {[%clk 0:00:13.1]} 77... Kf5
{[%clk 0:00:15.4]} 78. Kh4 {[%clk 0:00:14]} 78... Qxg6 {[%clk 0:00:16.3]} 79.
Kh3 {[%clk 0:00:14.9]} 79... Kf4 {[%clk 0:00:16.8]} 80. Kh2 {[%clk 0:00:15.8]}
80... Kf3 {[%clk 0:00:17.3]} 81. Kh1 {[%clk 0:00:16.7]} 81... Qg2# {[%clk
0:00:17.6]} 0-1